bitfinex/quotes_SOLUSD_20220306
["timestamp","ask_amount","ask_price","bid_price","bid_amount"]
[1646525576431,1.51615496,89.767,89.723,59.27798786]
[1646525576631,1.51615496,89.766,89.723,59.27798786]
[1646525576835,1.51615496,89.767,89.723,59.27798786]
[1646525577034,1.51615496,89.766,89.723,59.27798786]
[1646525577431,1.51615496,89.77,89.723,59.27798786]
[1646525577632,1.51615496,89.769,89.723,59.27798786]
[1646525577931,1.51615496,89.77,89.723,59.27798786]
[1646525578332,1.51615496,89.769,89.723,59.27798786]
[1646525578531,1.51615496,89.768,89.723,59.27798786]
[1646525579132,1.51615496,89.769,89.723,59.27798786]
[1646525579533,1.51615496,89.768,89.723,59.27798786]
[1646525580334,1.51615496,89.766,89.723,59.27798786]
[1646525580735,1.51615496,89.765,89.723,59.27798786]
[1646525580936,1.51615496,89.766,89.723,59.27798786]
[1646525581136,1.51615496,89.766,89.722,22.5629]
[1646525581636,1.51615496,89.762,89.722,22.5629]
[1646525582239,1.51615496,89.762,89.723,56.06345726]
[1646525582939,1.51615496,89.763,89.723,56.06345726]
[1646525583541,1.51615496,89.763,89.724,2.83613526]
[1646525583740,1.51615496,89.781,89.724,2.83613526]
[1646525583940,1.51615496,89.781,89.725,25.05957615]
[1646525584139,22.7521,89.798,89.725,25.05957615]
[1646525584140,1.51615496,89.788,89.725,25.05957615]
[1646525584342,1.51615496,89.789,89.726,2.83613526]
[1646525584540,53.95044778,89.788,89.73,15.99]
[1646525584842,55.46660274,89.788,89.73,32.7034]
[1646525585042,22.7521,89.787,89.73,32.7034]
[1646525585241,24.26825496,89.787,89.73,32.7034]
[1646525586141,22.7521,89.787,89.73,32.7034]
[1646525587042,24.26825496,89.787,89.73,15.99]
[1646525587241,1.51615496,89.784,89.73,15.99]
[1646525587442,1.51615496,89.783,89.73,15.99]
[1646525587841,1.51615496,89.782,89.73,15.99]
[1646525588242,5.57,89.781,89.73,15.99]
[1646525588943,5.57,89.782,89.73,15.99]
[1646525590645,5.57,89.783,89.73,15.99]
[1646525591046,7.08615496,89.783,89.73,15.99]
[1646525593849,1.51615496,89.783,89.73,83.02]
[1646525594049,22.7521,89.787,89.731,27.89571141]
[1646525594249,25.85755496,89.8,89.732,67.03]
[1646525594449,25.85755496,89.8,89.734,67.03]
[1646525594450,24.8852,89.799,89.734,67.03]
[1646525595151,24.8852,89.799,89.736,67.03]
[1646525595349,1.51615496,89.803,89.751,67.03]
[1646525595549,1.51615496,89.804,89.753,67.03]
[1646525595750,1.51615496,89.807,89.753,76.29]
[1646525595949,1.51615496,89.818,89.753,76.29]
[1646525596249,1.51615496,89.819,89.755,116.5271125]
[1646525596652,1.51615496,89.82,89.756,2.83613526]
[1646525596950,1.51615496,89.82,89.76,83.02]
[1646525597151,1.51615496,89.819,89.76,99.7276]
[1646525597550,1.51615496,89.818,89.76,99.7276]
[1646525597951,5.567,89.824,89.76,99.7276]
[1646525598354,7.08315496,89.824,89.76,32.6976]
[1646525598553,7.08315496,89.824,89.76,15.99]
[1646525598754,1.51615496,89.823,89.76,15.99]
[1646525598962,75.75755028,89.825,89.76,15.99]
[1646525598963,1.51615496,89.819,89.76,15.99]
[1646525599154,5.567,89.818,89.76,15.99]
[1646525599552,1.51615496,89.816,89.76,15.99]
[1646525599753,75.75755028,89.825,89.76,15.99]
[1646525599754,1.51615496,89.818,89.76,15.99]
[1646525600053,75.75755028,89.825,89.76,15.99]
[1646525600054,7.08315496,89.817,89.76,15.99]
[1646525600257,5.567,89.817,89.76,15.99]
[1646525600453,5.567,89.818,89.76,15.99]
[1646525600955,7.08315496,89.818,89.76,15.99]
[1646525601153,7.08315496,89.818,89.76,83.02]
[1646525601356,5.567,89.818,89.76,83.02]
[1646525601552,7.08315496,89.818,89.76,99.7278]
[1646525601753,1.51615496,89.819,89.76,99.7278]
[1646525602153,1.51615496,89.819,89.76,32.6978]
[1646525602554,1.51615496,89.82,89.76,32.6978]
[1646525602753,7.08315496,89.819,89.76,32.6978]
[1646525602956,1.51615496,89.82,89.76,32.6978]
[1646525603153,1.51615496,89.822,89.76,32.6978]
[1646525603353,1.51615496,89.823,89.76,32.6978]
[1646525604755,1.51615496,89.824,89.76,32.6978]
[1646525604954,1.51615496,89.823,89.76,32.6978]
[1646525605576,1.51615496,89.822,89.76,32.6978]
[1646525605775,1.51615496,89.823,89.76,32.6978]
[1646525606377,1.51615496,89.822,89.76,32.6978]
[1646525608081,1.51615496,89.823,89.76,32.6978]
[1646525608279,5.567,89.822,89.76,32.6978]
[1646525608680,1.51615496,89.821,89.76,32.6978]
[1646525610182,1.51615496,89.82,89.76,32.6978]
[1646525610481,1.51615496,89.817,89.76,32.6978]
[1646525610682,1.51615496,89.818,89.76,32.6978]
[1646525610882,1.51615496,89.817,89.76,32.6978]
[1646525611181,1.51615496,89.821,89.761,2.83613526]
[1646525611381,7.08315496,89.824,89.761,2.83613526]
[1646525611881,1.51615496,89.823,89.761,2.83613526]
[1646525612081,5.567,89.822,89.762,23.0643]
[1646525612482,7.08315496,89.823,89.763,2.83613526]
[1646525612781,1.51615496,89.823,89.763,2.83613526]
[1646525615686,77.27370524,89.825,89.763,2.83613526]
[1646525617286,75.75755028,89.825,89.763,2.83613526]
[1646525617487,1.51615496,89.824,89.763,2.83613526]
[1646525617888,1.51615496,89.823,89.763,2.83613526]
[1646525618090,1.51615496,89.824,89.763,2.83613526]
[1646525618291,77.27370524,89.825,89.763,2.83613526]
[1646525618492,75.75755028,89.825,89.763,2.83613526]
[1646525618691,5.567,89.824,89.763,2.83613526]
[1646525619092,77.27370524,89.825,89.763,2.83613526]
[1646525619290,1.51615496,89.824,89.763,2.83613526]
[1646525621394,1.51615496,89.819,89.763,2.83613526]
[1646525622397,1.51615496,89.818,89.763,2.83613526]
[1646525622903,1.51615496,89.819,89.763,2.83613526]
[1646525623296,1.51615496,89.818,89.763,2.83613526]
[1646525624201,1.51615496,89.813,89.763,2.83613526]
[1646525625802,1.51615496,89.813,89.763,27.89571141]
[1646525626000,1.51615496,89.815,89.763,27.89571141]
[1646525626203,1.51615496,89.815,89.764,2.83613526]
[1646525626502,1.51615496,89.815,89.77,83.7362]
[1646525626700,1.51615496,89.82,89.77,99.7262]
[1646525626902,1.51615496,89.823,89.771,28.38322729]
[1646525627102,1.51615496,89.829,89.772,22.5876]
[1646525627302,1.51615496,89.834,89.772,50.48331141]
[1646525627504,1.51615496,89.833,89.773,25.05957615]
[1646525627703,23.2814,89.847,89.773,25.05957615]
[1646525627704,1.51615496,89.834,89.773,27.89571141]
[1646525627903,1.51615496,89.833,89.774,2.83613526]
[1646525628106,1.51615496,89.834,89.78,16.7025]
[1646525628304,1.51615496,89.834,89.79,15.99]
[1646525628504,1.51615496,89.834,89.792,63.48194563]
[1646525628707,1.51615496,89.835,89.792,63.48194563]
[1646525628905,1.51615496,89.835,89.792,73.10194563]
[1646525629107,1.51615496,89.838,89.792,100.99765704]
[1646525629505,1.51615496,89.839,89.792,100.99765704]
[1646525629707,1.51615496,89.839,89.793,67.03]
[1646525629907,0.00615496,89.847,89.801,67.03]
[1646525630107,0.55890543,89.896,89.811,67.03]
[1646525630108,5.566,89.886,89.811,67.03]
[1646525630408,5.566,89.886,89.814,0.70503319]
[1646525630609,0.55890543,89.896,89.814,0.70503319]
[1646525630809,63.87157976,89.886,89.817,0.70503319]
[1646525631009,63.87157976,89.886,89.83,83.02]
[1646525631212,63.87157976,89.886,89.831,74.4100504]
[1646525631611,63.87157976,89.886,89.831,77.24618566]
[1646525631812,63.87157976,89.886,89.832,2.83613526]
[1646525632011,63.87157976,89.886,89.832,69.86613526]
[1646525632218,0.55890543,89.896,89.832,69.86613526]
[1646525632413,0.55890543,89.896,89.84,83.7231]
[1646525632611,0.55890543,89.896,89.84,99.7131]
[1646525633612,0.55890543,89.896,89.841,2.83613526]
[1646525634415,5.563,89.895,89.842,22.9521]
[1646525634814,5.563,89.895,89.843,2.83613526]
[1646525636917,0.55890543,89.896,89.843,2.83613526]
[1646525637519,0.55890543,89.896,89.827,2.83613526]
[1646525637719,5.564,89.895,89.83,15.99]
[1646525637918,5.564,89.895,89.83,83.02]
[1646525638119,23.4985,89.894,89.831,2.83613526]
[1646525638318,23.4985,89.894,89.84,16.6933]
[1646525638518,22.9985,89.894,89.84,32.6833]
[1646525641244,22.9985,89.894,89.841,2.83613526]
[1646525643743,0.55890543,89.896,89.841,2.83613526]
[1646525643946,0.55890543,89.896,89.85,83.7207]
[1646525644146,0.55890543,89.896,89.86,15.99]
[1646525644545,0.55890543,89.896,89.861,2.83613526]
[1646525644844,0.55890543,89.896,89.863,67.03]
[1646525645245,0.55890543,89.896,89.864,2.83613526]
[1646525650450,0.55890543,89.896,89.862,24.9293]
[1646525651254,8.01890543,89.896,89.86,15.99]
[1646525651454,8.01890543,89.896,89.841,2.83613526]
[1646525652051,16.23654028,89.895,89.841,2.83613526]
[1646525652252,24.8268,89.894,89.84,15.99]
[1646525653153,24.8268,89.894,89.841,2.83613526]
[1646525655657,24.8268,89.894,89.842,5.563]
[1646525657859,24.8268,89.894,89.841,5.563]
[1646525658060,111.7,89.893,89.841,5.563]
[1646525658259,5.563,89.892,89.828,5.563]
[1646525658460,16.7061,89.89,89.816,5.564]
[1646525658660,117.264,89.889,89.797,2.83613526]
[1646525659061,117.264,89.889,89.795,23.8997]
[1646525659261,111.7,89.887,89.79,15.99]
[1646525659561,111.7,89.885,89.79,15.99]
[1646525659762,111.7,89.883,89.79,15.99]
[1646525659963,111.7,89.881,89.79,15.99]
[1646525660162,111.7,89.879,89.791,2.83613526]
[1646525660462,5.565,89.878,89.791,2.83613526]
[1646525661364,5.565,89.88,89.791,2.83613526]
[1646525661863,111.7,89.869,89.779,2.83613526]
[1646525662064,111.7,89.867,89.779,2.83613526]
[1646525662264,5.566,89.866,89.769,2.83613526]
[1646525662464,111.7,89.864,89.769,2.83613526]
[1646525662664,5.566,89.863,89.769,2.83613526]
[1646525662866,16.7116,89.86,89.769,2.83613526]
[1646525663067,140.933,89.859,89.753,22.58124862]
[1646525663265,140.933,89.859,89.752,2.83613526]
[1646525663464,2.69440068,89.858,89.752,2.83613526]
[1646525663665,117.267,89.857,89.752,2.83613526]
[1646525664068,2.69440068,89.856,89.752,2.83613526]
[1646525664365,111.7,89.837,89.752,2.83613526]
[1646525664567,111.7,89.835,89.752,2.83613526]
[1646525664766,5.567,89.834,89.752,2.83613526]
[1646525665191,23.8475,89.836,89.754,67.03]
[1646525665192,5.567,89.835,89.754,67.03]
[1646525665371,23.8475,89.836,89.76,83.7388]
[1646525665572,23.8475,89.836,89.77,83.02]
[1646525665971,23.8475,89.836,89.77,138.6922]
[1646525666173,23.8475,89.836,89.771,25.41738388]
[1646525666472,54.37691361,89.835,89.781,45.81706859]
[1646525666871,54.37691361,89.835,89.782,2.83613526]
[1646525667473,23.8475,89.836,89.782,2.83613526]
[1646525668172,5.567,89.888,89.79,16.7019]
[1646525668372,51.12946466,89.865,89.79,99.7219]
[1646525668574,5.566,89.864,89.791,2.83613526]
[1646525668978,5.566,89.864,89.792,22.58124862]
[1646525669374,23.1024,89.887,89.792,22.58124862]
[1646525669575,23.1024,89.887,89.8,83.7303]
[1646525669776,23.1024,89.887,89.81,83.02]
[1646525670175,53.27767452,89.885,89.811,56.10334533]
[1646525670377,53.27767452,89.885,89.811,58.93948059]
[1646525670875,5.564,89.884,89.812,2.83613526]
[1646525671979,5.564,89.886,89.812,69.86613526]
[1646525672277,5.564,89.886,89.82,16.6962]
[1646525672478,5.564,89.886,89.82,99.7162]
[1646525672694,23.1024,89.887,89.821,5.564]
[1646525672897,58.10633593,89.886,89.821,8.40013526]
[1646525673098,58.10633593,89.886,89.822,2.83613526]
[1646525673296,58.10633593,89.886,89.823,5.564]
[1646525674999,111.7,89.885,89.823,5.564]
[1646525675199,5.564,89.884,89.822,2.83613526]
[1646525676600,5.564,89.884,89.82,15.99]
[1646525676801,5.564,89.884,89.812,5.564]
[1646525677200,5.564,89.884,89.806,5.564]
[1646525677400,111.7,89.885,89.806,5.564]
[1646525678101,111.7,89.885,89.807,52.28001239]
[1646525678303,111.7,89.885,89.808,5.565]
[1646525678602,5.565,89.884,89.807,52.28001239]
[1646525679406,58.10633593,89.886,89.81,83.02]
[1646525679603,58.10633593,89.886,89.811,5.564]
[1646525679804,58.10633593,89.886,89.812,67.03]
[1646525680003,58.10633593,89.886,89.82,83.727]
[1646525680210,5.564,89.885,89.82,99.717]
[1646525680505,5.564,89.885,89.82,32.687]
[1646525680705,5.564,89.885,89.821,2.83613526]
[1646525680903,5.564,89.885,89.82,15.99]
[1646525681504,117.264,89.885,89.82,15.99]
[1646525681904,5.564,89.885,89.82,15.99]
[1646525684306,5.564,89.885,89.821,5.564]
[1646525684609,117.264,89.885,89.821,5.564]
[1646525684807,117.264,89.885,89.82,15.99]
[1646525685109,117.264,89.885,89.811,2.83613526]
[1646525686507,5.564,89.885,89.811,2.83613526]
[1646525688111,23.1024,89.887,89.812,5.564]
[1646525688310,23.1024,89.887,89.813,67.03]
[1646525688510,23.1024,89.887,89.814,5.564]
[1646525688910,23.1024,89.887,89.815,67.03]
[1646525689110,23.1024,89.887,89.816,5.564]
[1646525689311,23.1024,89.887,89.83,83.02]
[1646525689512,23.1024,89.887,89.831,5.564]
[1646525689715,5.564,89.886,89.83,15.99]
[1646525689912,5.564,89.886,89.821,23.1103]
[1646525690313,5.564,89.886,89.822,2.83613526]
[1646525690713,23.1024,89.887,89.823,5.564]
[1646525693516,5.564,89.886,89.823,5.564]
[1646525694416,23.1024,89.887,89.823,5.564]
[1646525694819,23.1024,89.887,89.824,2.83613526]
[1646525697717,23.1024,89.887,89.824,2.33613526]
[1646525699219,5.564,89.895,89.83,83.7246]
[1646525699420,0.55890543,89.896,89.84,83.02]
[1646525699620,0.55890543,89.896,89.84,15.99]
[1646525699821,0.55890543,89.896,89.84,83.02]
[1646525700320,0.55890543,89.896,89.841,63.56080514]
[1646525700321,64.96095249,89.896,89.841,63.56080514]
[1646525700523,64.96095249,89.896,89.84,15.99]
[1646525700720,70.52395249,89.896,89.84,15.99]
[1646525701720,70.52395249,89.896,89.824,2.83613526]
[1646525701921,24.5388,89.895,89.824,2.83613526]
[1646525702123,5.564,89.894,89.824,2.83613526]
[1646525702624,117.264,89.894,89.823,5.564]
[1646525703223,117.264,89.894,89.8,15.99]
[1646525703422,3.04079652,89.891,89.79,15.99]
[1646525703622,111.7,89.889,89.808,46.80143682]
[1646525703824,5.564,89.888,89.808,46.80143682]
[1646525704022,111.7,89.887,89.808,46.80143682]
[1646525704223,111.7,89.885,89.808,46.80143682]
[1646525704622,111.7,89.883,89.808,46.80143682]
[1646525704822,5.565,89.882,89.808,46.80143682]
[1646525705325,24.5388,89.884,89.808,46.80143682]
[1646525705927,111.7,89.883,89.808,46.80143682]
[1646525706723,111.7,89.883,89.8,32.6903]
[1646525706923,111.7,89.883,89.8,15.99]
[1646525707526,5.565,89.882,89.8,15.99]
[1646525709724,111.7,89.881,89.8,15.99]
[1646525709922,5.565,89.88,89.8,15.99]
[1646525710825,117.265,89.88,89.8,15.99]
[1646525711225,117.265,89.88,89.801,5.565]
[1646525711624,117.265,89.88,89.8,15.99]
[1646525711827,5.565,89.88,89.8,15.99]
[1646525712024,5.565,89.882,89.8,15.99]
[1646525712626,5.565,89.882,89.805,2.83613526]
[1646525712825,24.5388,89.884,89.806,24.3164]
[1646525713029,24.5388,89.884,89.81,83.02]
[1646525713628,24.5388,89.884,89.811,2.83613526]
[1646525716227,5.564,89.883,89.811,2.83613526]
[1646525717030,24.5388,89.884,89.811,2.83613526]
[1646525717629,111.7,89.883,89.811,2.83613526]
[1646525717828,5.565,89.882,89.811,2.83613526]
[1646525725345,24.5388,89.884,89.811,2.83613526]
[1646525725545,24.5388,89.884,89.811,12.90613526]
[1646525725946,24.5388,89.884,89.812,2.83613526]
[1646525727647,5.564,89.883,89.812,2.83613526]
[1646525728647,117.264,89.883,89.812,2.83613526]
[1646525730168,111.7,89.881,89.812,2.83613526]
[1646525730367,111.7,89.879,89.812,2.83613526]
[1646525730567,111.7,89.877,89.812,2.83613526]
[1646525731770,24.5388,89.884,89.812,2.83613526]
[1646525731771,111.7,89.883,89.812,2.83613526]
[1646525731974,24.5388,89.884,89.812,2.83613526]
[1646525731975,111.7,89.881,89.812,2.83613526]
[1646525732172,111.7,89.879,89.812,2.83613526]
[1646525732975,5.565,89.878,89.812,2.83613526]
[1646525733375,6.08841512,89.877,89.806,24.3164]
[1646525733576,117.265,89.876,89.806,24.3164]
[1646525734580,5.565,89.876,89.806,24.3164]
[1646525734779,5.565,89.882,89.806,24.3164]
[1646525734979,111.7,89.88,89.806,24.3164]
[1646525735179,111.7,89.878,89.806,24.3164]
[1646525735380,5.565,89.877,89.806,24.3164]
[1646525736580,5.565,89.882,89.807,2.83613526]
[1646525736981,6.08814533,89.881,89.807,2.83613526]
[1646525737183,5.565,89.882,89.807,2.83613526]
[1646525737384,6.08814279,89.881,89.807,2.83613526]
[1646525738785,5.565,89.882,89.806,24.3164]
[1646525740686,5.565,89.882,89.807,2.83613526]
[1646525741287,6.08813263,89.881,89.807,2.83613526]
[1646525741489,5.565,89.88,89.807,2.83613526]
[1646525741988,5.565,89.882,89.807,2.83613526]
[1646525742789,6.0882097,89.881,89.807,2.83613526]
[1646525742989,5.565,89.88,89.807,2.83613526]
[1646525743391,5.565,89.882,89.807,2.83613526]
[1646525743688,6.08817494,89.881,89.807,2.83613526]
[1646525743889,5.565,89.88,89.807,2.83613526]
[1646525744292,5.565,89.882,89.807,2.83613526]
[1646525744490,6.0881676,89.881,89.807,2.83613526]
[1646525744694,5.565,89.88,89.807,2.83613526]
[1646525745094,111.7,89.883,89.807,2.83613526]
[1646525745095,5.565,89.882,89.807,2.83613526]
[1646525745292,6.08817152,89.881,89.807,2.83613526]
[1646525745492,5.565,89.88,89.807,2.83613526]
[1646525745892,5.565,89.882,89.807,2.83613526]
[1646525746095,6.08815798,89.881,89.807,2.83613526]
[1646525746494,6.08815798,89.882,89.807,2.83613526]
[1646525749617,5.565,89.881,89.807,2.83613526]
[1646525750018,1.5210453,89.864,89.807,2.83613526]
[1646525750219,14.50611838,89.863,89.807,2.83613526]
[1646525750919,12.98507308,89.863,89.807,3.42540126]
[1646525751621,14.50611838,89.863,89.807,3.42540126]
[1646525752025,126.20611838,89.863,89.807,3.42540126]
[1646525752223,1.5210453,89.856,89.807,0.589266]
[1646525752425,1.5210453,89.845,89.807,0.589266]
[1646525752623,1.5210453,89.837,89.807,0.589266]
[1646525752826,1.5210453,89.826,89.807,0.589266]
[1646525753025,111.7,89.824,89.807,0.589266]
[1646525753423,5.566,89.823,89.807,0.589266]
[1646525754325,7.0870453,89.823,89.807,0.589266]
[1646525755130,5.566,89.823,89.807,0.589266]
[1646525755427,5.566,89.824,89.807,0.589266]
[1646525755829,1.5210453,89.834,89.807,0.589266]
[1646525756027,1.5210453,89.835,89.807,0.589266]
[1646525756428,1.5210453,89.848,89.807,0.589266]
[1646525756628,1.5210453,89.849,89.807,0.589266]
[1646525756827,1.5210453,89.854,89.807,0.589266]
[1646525757627,1.5210453,89.851,89.807,0.589266]
[1646525757830,1.5210453,89.853,89.807,0.589266]
[1646525758532,1.5210453,89.852,89.807,0.589266]
[1646525758730,1.5210453,89.853,89.807,0.589266]
[1646525759131,1.5210453,89.851,89.807,0.589266]
[1646525759330,1.5210453,89.85,89.807,0.589266]
[1646525760231,5.566,89.849,89.807,0.589266]
[1646525760433,1.5210453,89.844,89.807,0.589266]
[1646525760632,5.566,89.843,89.807,0.589266]
[1646525761032,7.0870453,89.843,89.807,0.589266]
[1646525761232,5.566,89.843,89.807,0.589266]
[1646525761442,24.5996,89.842,89.807,0.589266]
[1646525761634,5.566,89.841,89.807,0.589266]
[1646525762732,117.266,89.841,89.807,0.589266]
[1646525763731,1.5210453,89.84,89.807,0.589266]
[1646525763932,5.566,89.839,89.807,0.589266]
[1646525764633,5.566,89.84,89.807,0.589266]
[1646525765033,24.5996,89.842,89.807,0.589266]
[1646525765233,5.566,89.857,89.807,6.959266]
[1646525765234,1.5210453,89.851,89.807,6.959266]
[1646525765438,5.566,89.85,89.807,6.959266]
[1646525765635,5.566,89.855,89.807,6.959266]
[1646525766038,5.566,89.857,89.807,6.959266]
[1646525766237,5.565,89.858,89.808,60.79874648]
[1646525768041,117.265,89.859,89.808,60.79874648]
[1646525768240,7.0860453,89.859,89.808,60.79874648]
[1646525769242,1.5210453,89.858,89.808,60.79874648]
[1646525769441,5.565,89.857,89.808,60.79874648]
[1646525769842,5.565,89.858,89.808,60.79874648]
[1646525770043,5.565,89.859,89.808,60.79874648]
[1646525770242,24.4786,89.86,89.808,60.79874648]
[1646525774947,24.4786,89.86,89.807,0.589266]
[1646525775148,111.7,89.859,89.807,0.589266]
[1646525775347,111.7,89.857,89.807,0.589266]
[1646525775547,5.565,89.856,89.807,0.589266]
[1646525775948,1.5210453,89.858,89.807,0.589266]
[1646525776150,24.4786,89.86,89.807,0.589266]
[1646525778955,25.9996453,89.86,89.807,0.589266]
[1646525779157,5.565,89.859,89.807,0.589266]
[1646525783282,117.265,89.859,89.807,0.589266]
[1646525783483,1.5210453,89.856,89.807,0.589266]
[1646525783682,5.565,89.855,89.807,0.589266]
[1646525783882,1.5210453,89.853,89.807,0.589266]
[1646525784181,29.92825836,89.852,89.807,0.589266]
[1646525784584,25.88330366,89.852,89.807,0.589266]
[1646525784782,1.5210453,89.852,89.807,0.589266]
[1646525785081,1.5210453,89.85,89.807,0.589266]
[1646525785483,1.5210453,89.851,89.807,0.589266]
[1646525785883,1.5210453,89.85,89.807,0.589266]
[1646525788289,5.566,89.849,89.807,0.589266]
[1646525788487,22.9958,89.848,89.807,0.589266]
[1646525788789,5.566,89.847,89.807,0.589266]
[1646525788988,117.266,89.847,89.807,0.589266]
[1646525789789,1.5210453,89.844,89.807,0.589266]
[1646525789991,5.566,89.843,89.807,0.589266]
[1646525790188,1.5210453,89.835,89.807,0.589266]
[1646525790390,5.566,89.834,89.807,0.589266]
[1646525791190,5.566,89.835,89.807,0.589266]
[1646525791590,1.5210453,89.833,89.807,0.589266]
[1646525791790,5.566,89.832,89.807,0.589266]
[1646525792190,111.7,89.831,89.807,0.589266]
[1646525792492,111.7,89.828,89.807,0.589266]
[1646525792690,117.266,89.828,89.807,0.589266]
[1646525793790,5.566,89.828,89.807,0.589266]
[1646525793992,5.566,89.832,89.807,0.589266]
[1646525794190,5.566,89.833,89.807,0.589266]
[1646525794391,111.7,89.834,89.807,0.589266]
[1646525794790,111.7,89.832,89.807,0.589266]
[1646525794992,111.7,89.832,89.76,2.3391111]
[1646525794993,5.566,89.831,89.76,2.3391111]
[1646525795193,111.7,89.83,89.76,2.3391111]
[1646525795394,1.5210453,89.818,89.76,2.3391111]
[1646525795594,16.7196,89.82,89.76,2.3391111]
[1646525795595,1.5210453,89.815,89.76,2.3391111]
[1646525795795,111.7,89.813,89.76,2.3391111]
[1646525795996,111.7,89.811,89.76,2.3391111]
[1646525796195,5.567,89.81,89.76,2.3391111]
[1646525799802,111.7,89.811,89.76,2.3391111]
[1646525802802,5.567,89.81,89.76,2.3391111]
[1646525808611,111.7,89.809,89.76,2.3391111]
[1646525808808,5.567,89.808,89.76,2.3391111]
[1646525809214,111.7,89.806,89.76,2.3391111]
[1646525809411,5.567,89.805,89.76,2.3391111]
[1646525809812,111.7,89.804,89.76,2.3391111]
[1646525810114,111.7,89.797,89.76,2.3391111]
[1646525810315,5.569,89.796,89.76,2.3391111]
[1646525810918,5.569,89.797,89.76,2.3391111]
[1646525811517,24.848,89.807,89.76,2.3391111]
[1646525811913,111.7,89.806,89.76,2.3391111]
[1646525812314,111.7,89.806,89.761,62.79250478]
[1646525812714,5.567,89.805,89.761,62.79250478]
[1646525813517,5.567,89.806,89.761,62.79250478]
[1646525813715,5.567,89.806,89.76,2.3391111]
[1646525814015,117.267,89.806,89.76,2.3391111]
[1646525815119,1.5210453,89.805,89.76,2.3391111]
[1646525815329,1.5210453,89.802,89.76,2.3391111]
[1646525815531,5.569,89.801,89.76,2.3391111]
[1646525815731,1.5210453,89.796,89.76,2.3391111]
[1646525815931,113.2210453,89.794,89.76,2.3391111]
[1646525816237,1.5210453,89.79,89.76,2.3391111]
[1646525816430,5.569,89.789,89.76,2.3391111]
[1646525816830,5.569,89.791,89.76,2.3391111]
[1646525817230,111.7,89.789,89.76,2.3391111]
[1646525817431,5.569,89.788,89.76,2.3391111]
[1646525817630,5.569,89.788,89.693,16.7051]
[1646525817833,5.569,89.788,89.694,23.0003]
[1646525817834,111.7,89.786,89.694,23.0003]
[1646525818034,1.5210453,89.777,89.694,23.0003]
[1646525818232,1.5210453,89.775,89.694,23.0003]
[1646525818431,111.7,89.773,89.694,23.0003]
[1646525818631,111.7,89.77,89.695,45.94024436]
[1646525818832,5.572,89.769,89.695,45.94024436]
[1646525820133,5.572,89.769,89.694,23.0003]
[1646525820336,1.5210453,89.762,89.694,23.0003]
[1646525820538,5.572,89.761,89.694,23.0003]
[1646525820939,5.572,89.764,89.694,23.0003]
[1646525821138,134.3035,89.763,89.694,23.0003]
[1646525821337,111.7,89.759,89.658,21.32995855]
[1646525821536,5.573,89.758,89.658,21.32995855]
[1646525821736,1.5210453,89.738,89.649,48.4762]
[1646525822035,1.5210453,89.736,89.649,48.4762]
[1646525822335,111.7,89.734,89.65,56.38643912]
[1646525822536,5.574,89.733,89.65,56.38643912]
[1646525823141,5.574,89.733,89.651,89.7764811]
[1646525823337,111.7,89.734,89.651,89.7764811]
[1646525824338,5.574,89.733,89.651,89.7764811]
[1646525824742,5.574,89.733,89.651,22.7464811]
[1646525825540,5.574,89.733,89.652,88.19953855]
[1646525825743,22.6035,89.735,89.652,94.88953855]
[1646525825938,22.6035,89.735,89.66,83.7575]
[1646525826139,22.6035,89.735,89.661,24.0682]
[1646525827745,117.274,89.734,89.661,24.0682]
[1646525834041,5.574,89.734,89.661,24.0682]
[1646525834442,22.6035,89.735,89.661,24.0682]
[1646525834641,64.0369741,89.745,89.661,24.0682]